fUSD/lending_fUSD_20240101
["ID","MTS","AMOUNT","RATE_DAILY","PERIOD"]
[309789128,1704125432724,-122.22916791,0.0002991,2]
[309789129,1704125432737,-106.94083209,0.0002991,2]
[309789130,1704125432746,-352.86916791,0.00029952,2]
[309789131,1704125432759,-617.55407124,0.00029952,2]
[309789132,1704125432772,-426.72174,0.00029952,2]
[309789133,1704125432789,-1116.17502085,0.00029952,2]
[309789134,1704125432799,-225.37724309,0.00029991,2]
[309789135,1704125432812,-3.79275691,0.00029991,2]
[309789136,1704125432822,-155.0,0.00030035,2]
[309789137,1704125432833,-311.43425313,0.00030035,2]
[309789138,1704125432846,-843.61828265,0.00030035,2]
[309789139,1704125432869,-1572.04288794,0.00030035,2]
[309789140,1704125432879,-688.92559834,0.00030036,2]
[309789141,1704125432889,-233.97991275,0.00030037,2]
[309789142,1704125432902,-82.46008725,0.00030037,2]
[309789143,1704125432913,-229.17,0.00030072,2]
[309789144,1704125432924,-206.22059971,0.0003012,2]
[309789145,1704125432937,-254.53781355,0.0003012,2]
[309789146,1704125433026,-831.39159651,0.0003012,2]
[309789147,1704125433039,-443.9214468,0.0003012,2]
[309789148,1704125433052,-777.24854343,0.0003012,2]
[309789149,1704125433063,-406.38292411,0.00030137,2]
[309789150,1704125433077,-384.38794799,0.00030137,2]
[309789209,1704125438300,-209.2291279,0.00030137,2]
[309789210,1704125438310,-142.10887776,0.00030151,2]
[309789211,1704125438524,-361.83112224,0.00030151,2]
[309789212,1704125438534,-229.17,0.00030154,2]
[309789213,1704125438543,-156.09041944,0.00030181,2]
[309789214,1704125438553,-229.17,0.00030235,2]
[309789215,1704125438563,-308.96081621,0.00030288,2]
[309789216,1704125438574,-951.26132272,0.00030288,2]
[309789217,1704125438586,-1253.09786107,0.00030288,2]
[309789218,1704125438595,-229.17,0.00030316,2]
[309789219,1704125438605,-229.17,0.00030397,2]
[309789220,1704125438614,-2513.32,0.00030456,2]
[309789221,1704125438623,-165.14,0.00030467,2]
[309789222,1704125438634,-229.17,0.00030478,2]
[309789223,1704125438643,-229.17,0.00030559,2]
[309789224,1704125438652,-155.0,0.00030623,5]
[309789225,1704125438662,-2513.32,0.00030625,2]
[309789226,1704125438672,-481.23,0.00030631,2]
[309789227,1704125438681,-229.17,0.0003064,2]
[309789228,1704125438690,-720.98,0.00030704,2]
[309789229,1704125438700,-229.17,0.00030722,2]
[309789231,1704125438709,-229.17,0.00030803,2]
[309789232,1704125438718,-229.17,0.00030884,2]
[309789233,1704125438728,-229.17,0.00030965,2]
[309789234,1704125438737,-368.30977036,0.00031,2]
[309789235,1704125438746,-229.17,0.00031046,2]
[309789236,1704125438756,-229.17,0.00031127,2]
[309789237,1704125438765,-175.86,0.00031192,2]
[309789238,1704125438775,-503.94,0.00031226,2]
[309789239,1704125438785,-156.09041944,0.00031257,2]
[309789240,1704125438795,-481.23,0.0003161,2]
[309789241,1704125438805,-6959.70683958,0.00031989,2]
[309789242,1704125438819,-4957.94637241,0.00031989,2]
[309789243,1704125438828,-2236.48368061,0.00031998,4]
[309789244,1704125438838,-1473.9,0.00031999,2]
[309789245,1704125438848,-1473.9,0.00031999,2]
[309789246,1704125438858,-1473.9,0.00031999,2]
[309789247,1704125438867,-1473.9,0.00031999,2]
[309789248,1704125438877,-1473.9,0.00031999,2]
[309789249,1704125438886,-2883.16,0.00031999,2]
[309789251,1704125438896,-2295.93304161,0.00032,4]
[309789255,1704125439071,-32759.41976976,0.00032,2]
[309789256,1704125439083,-80467.69811975,0.00032,2]
[309789257,1704125439094,-9472.92072666,0.00032,2]
[309789258,1704125439106,-6864.05189943,0.00032,2]
[309789259,1704125439116,-153.84,0.00032086,2]
[309789260,1704125439125,-503.94,0.00032302,2]
[309789261,1704125439134,-156.09041944,0.00032334,2]
[309789262,1704125439143,-481.23,0.00032588,2]
[309789263,1704125439152,-200.0,0.00032723,2]
[309789264,1704125439161,-179.05,0.00032877,15]
[309789265,1704125439171,-151.51,0.00032993,2]
[309789266,1704125439180,-153.84,0.00033058,2]
[309789267,1704125439189,-800.0,0.00033331,2]
[309789268,1704125439199,-151.51,0.00033359,2]
[309789269,1704125439208,-503.94,0.00033378,2]
[309789270,1704125439218,-367.73,0.0003341,2]
[309789271,1704125439227,-156.09041944,0.00033411,2]
[309789272,1704125439237,-488.57064187,0.000335,4]
[309789273,1704125439246,-481.23,0.00033567,2]
[309789274,1704125439255,-367.73,0.00033586,2]
[309789275,1704125439264,-151.51,0.00033724,2]
[309789276,1704125439273,-367.73,0.00033761,2]
[309789277,1704125439282,-367.73,0.00033937,2]
[309789278,1704125439291,-1000.0,0.00034,4]
[309789279,1704125439301,-377.09293968,0.00034,2]
[309789280,1704125439311,-377.09293968,0.00034,2]
[309789281,1704125439321,-377.09293968,0.00034,2]
[309789282,1704125439330,-377.09293968,0.00034,2]
[309789283,1704125439340,-377.09293968,0.00034,2]
[309789284,1704125439350,-377.09293968,0.00034,2]
[309789285,1704125439359,-377.09293968,0.00034,2]
[309789286,1704125439369,-377.09293968,0.00034,2]
[309789287,1704125439378,-377.09293968,0.00034,2]
[309789288,1704125439388,-377.09293968,0.00034,2]
[309789289,1704125439397,-377.09293968,0.00034,2]
[309789290,1704125439407,-377.09293968,0.00034,2]
[309789291,1704125439417,-377.09293968,0.00034,2]
[309789292,1704125439426,-377.09293968,0.00034,2]
[309789293,1704125439435,-377.09293968,0.00034,2]
[309789294,1704125439444,-377.09293968,0.00034,2]
[309789295,1704125439454,-377.09293968,0.00034,2]
[309789296,1704125439463,-377.09293968,0.00034,2]
[309789297,1704125439473,-377.09293968,0.00034,2]
[309789298,1704125439482,-377.09293968,0.00034,2]
[309789299,1704125439491,-377.09293968,0.00034,2]
[309789300,1704125439501,-377.09293968,0.00034,2]
[309789301,1704125439510,-377.09293968,0.00034,2]
[309789302,1704125439519,-377.09293968,0.00034,2]
[309789303,1704125439530,-377.09293968,0.00034,2]
[309789304,1704125439543,-377.09293968,0.00034,2]
[309789305,1704125439552,-377.09293968,0.00034,2]
[309789306,1704125439562,-377.09293968,0.00034,2]
[309789307,1704125439574,-377.09293968,0.00034,2]
[309789308,1704125439584,-377.09293968,0.00034,2]
[309789309,1704125439593,-153.84,0.0003403,2]
[309789310,1704125439602,-151.51,0.00034089,2]
[309789311,1704125439612,-168.08,0.00034101,2]
[309789312,1704125439622,-367.73,0.00034113,2]
[309789313,1704125439632,-367.73,0.00034289,2]
[309789314,1704125439641,-151.51,0.00034454,2]
[309789315,1704125439651,-367.73,0.00034465,2]
[309789316,1704125439660,-156.09041944,0.00034487,2]
[309789317,1704125439669,-2994.13622142,0.000345,2]
[309789318,1704125439679,-481.23,0.00034545,2]
[309789319,1704125439688,-367.73,0.00034641,2]
[309789320,1704125439698,-180.0,0.00034658,2]
[309789321,1704125439708,-367.73,0.00034816,2]
[309789322,1704125439718,-151.51,0.00034819,2]
[309789323,1704125439727,-5390.84668957,0.000349,2]
[309789324,1704125439738,-367.73,0.00034992,2]
[309789325,1704125439747,-378.92607139,0.00035,2]
[309789326,1704125439758,-702.00217141,0.00035,7]
[309789327,1704125439768,-153.84,0.00035003,2]
[309789328,1704125439778,-155.0,0.00035099,4]
[309789329,1704125439787,-1918.0,0.000351,3]
[309789330,1704125439797,-22275.0,0.000351,3]
[309789331,1704125439806,-367.73,0.00035168,2]
[309789332,1704125439817,-151.51,0.00035184,2]
[309789333,1704125439827,-367.73,0.00035344,2]
[309789334,1704125439838,-367.73,0.0003552,2]
[309789335,1704125439847,-481.23,0.00035523,2]
[309789336,1704125439857,-151.51,0.00035549,2]
[309789337,1704125439867,-156.09041944,0.00035564,2]
[309789338,1704125439877,-167.0,0.00035584,2]
[309789339,1704125439887,-150.9,0.00035616,2]
[309789340,1704125439896,-367.73,0.00035696,2]
[309789341,1704125439906,-367.73,0.00035872,2]
[309789342,1704125439915,-151.51,0.00035914,2]
[309789343,1704125439925,-153.84,0.00035975,2]
[309789344,1704125439935,-155.0,0.00036,4]
[309789345,1704125439944,-367.73,0.00036047,2]
[309789346,1704125439954,-23685.4578412,0.00036079,8]
[309789347,1704125439963,-15785.77318798,0.00036089,2]
[309789348,1704125439973,-15785.77318798,0.00036089,2]
[309789349,1704125439983,-367.73,0.00036223,2]
[309789350,1704125439993,-151.51,0.00036279,2]
[309789351,1704125440002,-367.73,0.00036399,2]
[309789352,1704125440012,-481.23,0.00036502,2]
[309789353,1704125440021,-367.73,0.00036575,2]
[309789354,1704125440031,-179.05,0.00036613,15]
[309789355,1704125440041,-156.09041944,0.0003664,2]
[309789356,1704125440050,-151.51,0.00036644,2]
[309789357,1704125440060,-170.59147513,0.00036701,4]
[309789358,1704125440071,-150.9,0.00036729,2]
[309789359,1704125440081,-367.73,0.00036751,2]
[309789360,1704125440090,-5921.3644603,0.0003679,9]
[309789361,1704125440099,-380.83098952,0.0003679,2]
[309789362,1704125440109,-200.0,0.00036813,2]
[309789363,1704125440118,-5921.3644603,0.00036869,10]
[309789364,1704125440128,-41449.5512221,0.0003687,10]
[309789365,1704125440137,-2883.16,0.00036879,2]
[309789366,1704125440147,-2883.16,0.00036879,2]
[309789367,1704125440156,-2883.16,0.00036879,2]
[309789368,1704125440166,-2883.16,0.00036879,2]
[309789369,1704125440175,-82899.1024442,0.0003688,10]
[309789370,1704125440185,-193.35205582,0.0003688,2]
[309789371,1704125440194,-173698.28584293,0.0003689,2]
[309789372,1704125440204,-5921.3644603,0.0003689,10]
[309789373,1704125440213,-2007.4040209,0.000369,2]
[309789374,1704125440223,-2400.48474094,0.000369,4]
[309789375,1704125440232,-702.00217135,0.00036914,8]
[309789376,1704125440241,-153.84,0.00036947,2]
[309789377,1704125440251,-151.51,0.00037009,2]
[309789378,1704125440260,-206.0,0.00037022,2]
[309789379,1704125440274,-800.0,0.00037035,2]
[309789380,1704125440285,-380.83098948,0.00037318,2]
[309789381,1704125440294,-151.51,0.00037375,2]
[309789382,1704125440304,-481.23,0.0003748,2]
[309789383,1704125440313,-5921.3644603,0.0003765,10]
[309789384,1704125440323,-5000.0,0.0003766,3]
[309789385,1704125440332,-156.09041944,0.00037717,2]
[309789386,1704125440342,-151.51,0.0003774,2]
[309789387,1704125440352,-303.55554,0.00037798,4]
[309789388,1704125440361,-1521.0888,0.000378,2]
[309789389,1704125440371,-1370.1346,0.000378,2]
[309789390,1704125440380,-500.0,0.000378,2]
[309789391,1704125440389,-400.0,0.000378,13]
[309789392,1704125440399,-151.93457301,0.000378,2]
[309789393,1704125440408,-150.9,0.00037842,2]
[309789394,1704125440418,-380.83098948,0.00037845,2]
[309789395,1704125440427,-5921.3644603,0.00037877,10]
[309789396,1704125440437,-59213.644603,0.0003788,10]
[309789397,1704125440446,-201.05679757,0.00037897,2]
[309789398,1704125440456,-269.51878409,0.00037897,2]
[309789399,1704125440465,-155.0,0.00037897,2]
[309789400,1704125440475,-930.3125847,0.00037898,2]
[309789401,1704125440484,-2535.0957147,0.00037899,4]
[309789402,1704125440494,-295036.6652708,0.000379,5]
[309789403,1704125440504,-800.0,0.000379,13]
[309789404,1704125440513,-398185.172767,0.000379,2]
[309789405,1704125440523,-15785.77318798,0.00037908,2]
[309789406,1704125440534,-153.84,0.00037919,2]
[309789407,1704125440543,-79637.0345535,0.0003799,2]
[309789408,1704125440553,-2189.75345,0.00037998,2]
[309789409,1704125440563,-294.64639066,0.00037999,2]
[309789410,1704125440573,-421.94463685,0.00037999,2]
[309789411,1704125440582,-57700.71370176,0.00038,4]
[309789412,1704125440591,-13033.36147974,0.00038,2]
[309789413,1704125440601,-200.0,0.00038,5]
[309789414,1704125440611,-401.35063277,0.00038011,4]
[309789415,1704125440621,-912.51344053,0.00038102,2]
[309789416,1704125440631,-151.51,0.00038105,2]
[309789417,1704125440640,-153.87,0.00038175,2]
[309789418,1704125440650,-167.0,0.00038178,2]
[309789419,1704125440659,-206.8966698,0.00038196,10]
[309789421,1704125440669,-973.95555245,0.00038228,2]
[309789422,1704125440678,-7500.0,0.000383,2]
[309789423,1704125440688,-380.83098948,0.00038373,2]
[309789424,1704125440698,-7999.0,0.000384,2]
[309789425,1704125440707,-1053.77192976,0.00038403,3]
[309789426,1704125440717,-1055.40765562,0.00038406,3]
[309789428,1704125440726,-403.37,0.00038438,2]
[309789430,1704125440736,-208.38461763,0.00038442,5]
[309789432,1704125440745,-481.23,0.00038459,2]
[309789434,1704125440755,-151.51,0.0003847,2]
[309789436,1704125440764,-247.2,0.00038474,2]
[309789438,1704125440774,-200.0,0.00038474,2]
[309789439,1704125440784,-150.0,0.00038474,2]
[309789440,1704125440793,-387.0,0.00038474,2]
[309789441,1704125440803,-942.0,0.00038474,2]
[309789442,1704125440813,-822.777,0.00038474,2]
[309789443,1704125440826,-1256.0,0.00038474,2]
[309789444,1704125440839,-1234.0,0.00038474,2]
[309789445,1704125440852,-1137.0,0.00038474,2]
[309789446,1704125440862,-465.75,0.00038474,2]
[309789447,1704125440873,-764.83,0.00038474,2]
[309789448,1704125440883,-461.722,0.00038474,2]
[309789449,1704125440894,-317.0,0.00038474,2]
[309789450,1704125440904,-235.957,0.00038474,2]
[309789451,1704125440913,-842.78,0.00038474,2]
[309789452,1704125440924,-757.152,0.00038474,2]
[309789453,1704125440935,-2263.0,0.00038474,2]
[309789454,1704125440946,-893.923,0.00038474,2]
[309789455,1704125440957,-2892.0,0.00038474,2]
[309789456,1704125440968,-708.69624425,0.0003852,2]
[309789457,1704125440978,-298.70793886,0.0003852,2]
[309789458,1704125440987,-185.2476374,0.0003852,2]
[309789459,1704125440998,-225.77076741,0.0003852,2]
[309789460,1704125441007,-79637.0345535,0.0003861,3]
[309789461,1704125441017,-79637.0345535,0.0003862,3]
[309789462,1704125441027,-1000.0,0.0003863,30]
[309789463,1704125441037,-1000.0,0.0003863,30]
[309789464,1704125441047,-1000.0,0.0003863,30]
[309789465,1704125441057,-1000.0,0.0003863,30]
[309789466,1704125441070,-1000.0,0.0003863,30]
[309789467,1704125441080,-1000.0,0.0003863,30]
[309789468,1704125441090,-1000.0,0.0003863,30]
[309789469,1704125441100,-1000.0,0.0003863,30]
[309789470,1704125441109,-1000.0,0.0003863,30]
[309789471,1704125441119,-1000.0,0.0003863,30]
[309789472,1704125441129,-1000.0,0.0003863,30]
[309789473,1704125441139,-1000.0,0.0003863,30]
[309789474,1704125441149,-1000.0,0.0003863,30]
[309789475,1704125441160,-1000.0,0.0003863,30]
[309789476,1704125441170,-1000.0,0.0003863,30]
[309789477,1704125441179,-1000.0,0.0003863,30]
[309789478,1704125441192,-1000.0,0.0003863,30]
[309789479,1704125441201,-1000.0,0.0003863,30]
[309789480,1704125441211,-1000.0,0.0003863,30]
[309789481,1704125441220,-1000.0,0.0003863,30]
[309789482,1704125441230,-1000.0,0.0003863,30]
[309789483,1704125441239,-1000.0,0.0003863,30]
[309789484,1704125441248,-1000.0,0.0003863,30]
[309789485,1704125441257,-1000.0,0.0003863,30]
[309789486,1704125441267,-1000.0,0.0003863,30]
[309789487,1704125441277,-1000.0,0.0003863,30]
[309789488,1704125441287,-1000.0,0.0003863,30]
[309789489,1704125441297,-1000.0,0.0003863,30]
[309789490,1704125441306,-1000.0,0.0003863,30]
[309789491,1704125441318,-1000.0,0.0003863,30]
[309789492,1704125441327,-1000.0,0.0003863,30]
[309789493,1704125441336,-1000.0,0.0003863,30]
[309789494,1704125441345,-1000.0,0.0003863,30]
[309789495,1704125441355,-1000.0,0.0003863,30]
[309789496,1704125441364,-1000.0,0.0003863,30]
[309789497,1704125441374,-1000.0,0.0003863,30]
[309789498,1704125441384,-1000.0,0.0003863,30]
[309789499,1704125441394,-1000.0,0.0003863,30]
[309789500,1704125441404,-1000.0,0.0003863,30]
[309789501,1704125441415,-1000.0,0.0003863,30]
[309789502,1704125441425,-1000.0,0.0003863,30]
[309789503,1704125441435,-1000.0,0.0003863,30]
[309789504,1704125441445,-1000.0,0.0003863,30]
[309789505,1704125441456,-1000.0,0.0003863,30]
[309789506,1704125441467,-1000.0,0.0003863,30]
[309789507,1704125441478,-1000.0,0.0003863,30]
[309789508,1704125441488,-1000.0,0.0003863,30]
[309789509,1704125441499,-1000.0,0.0003863,30]
[309789510,1704125441509,-1000.0,0.0003863,30]
[309789511,1704125441518,-1000.0,0.0003863,30]
[309789512,1704125441532,-1000.0,0.0003863,30]
[309789513,1704125441542,-1000.0,0.0003863,30]
[309789514,1704125441551,-1000.0,0.0003863,30]
[309789515,1704125441561,-1000.0,0.0003863,30]
[309789516,1704125441573,-1000.0,0.0003863,30]
[309789517,1704125441583,-1000.0,0.0003863,30]
[309789518,1704125441592,-1000.0,0.0003863,30]
[309789519,1704125441602,-1000.0,0.0003863,30]
[309789520,1704125441612,-1000.0,0.0003863,30]
[309789521,1704125441624,-1000.0,0.0003863,30]
[309789522,1704125441634,-1000.0,0.0003863,30]
[309789523,1704125441643,-1000.0,0.0003863,30]
[309789524,1704125441653,-1000.0,0.0003863,30]
[309789525,1704125441663,-1000.0,0.0003863,30]
[309789526,1704125441672,-1000.0,0.0003863,30]
[309789527,1704125441682,-1000.0,0.0003863,30]
[309789528,1704125441691,-1000.0,0.0003863,30]
[309789529,1704125441701,-1000.0,0.0003863,30]
[309789530,1704125441712,-1000.0,0.0003863,30]
[309789531,1704125441721,-1000.0,0.0003863,30]
[309789532,1704125441731,-1000.0,0.0003863,30]
[309789533,1704125441740,-1000.0,0.0003863,30]
[309789534,1704125441749,-1000.0,0.0003863,30]
[309789535,1704125441758,-1000.0,0.0003863,30]
[309789536,1704125441768,-1000.0,0.0003863,30]
[309789537,1704125441778,-1000.0,0.0003863,30]
[309789538,1704125441787,-1000.0,0.0003863,30]
[309789539,1704125441797,-1000.0,0.0003863,30]
[309789540,1704125441807,-1000.0,0.0003863,30]
[309789541,1704125441818,-1000.0,0.0003863,30]
[309789542,1704125441828,-1000.0,0.0003863,30]
[309789543,1704125441838,-1000.0,0.0003863,30]
[309789544,1704125441849,-1000.0,0.0003863,30]
[309789545,1704125441858,-1000.0,0.0003863,30]
[309789546,1704125441868,-1000.0,0.0003863,30]
[309789547,1704125441878,-1000.0,0.0003863,30]
[309789548,1704125441888,-1000.0,0.0003863,30]
[309789549,1704125441898,-1000.0,0.0003863,30]
[309789550,1704125441907,-1000.0,0.0003863,30]
[309789551,1704125441916,-1000.0,0.0003863,30]
[309789553,1704125441925,-1000.0,0.0003863,30]
[309789555,1704125441935,-1000.0,0.0003863,30]
[309789557,1704125441945,-1000.0,0.0003863,30]
[309789560,1704125441955,-1000.0,0.0003863,30]
[309789561,1704125441965,-1000.0,0.0003863,30]
[309789562,1704125441975,-1000.0,0.0003863,30]
[309789563,1704125441986,-1000.0,0.0003863,30]
[309789564,1704125441996,-1000.0,0.0003863,30]
[309789565,1704125442006,-1000.0,0.0003863,30]
[309789566,1704125442016,-1000.0,0.0003863,30]
[309789567,1704125442026,-1079.75926165,0.00038656,9]
[309789568,1704125442036,-9315.30778143,0.00038656,9]
[309789569,1704125442046,-153.78517581,0.00038656,8]
[309789570,1704125442056,-200.0,0.00038685,2]
[309789571,1704125442067,-1200.0,0.000387,14]
[309789572,1704125442077,-521.69660047,0.0003878,4]
[309789573,1704125442087,-156.09041944,0.00038793,2]
[309789574,1704125442096,-23330.0487842,0.000388,2]
[309789575,1704125442105,-1600.0,0.000388,14]
[309789576,1704125442115,-702.00217135,0.00038829,9]
[309789577,1704125442124,-151.51,0.00038835,2]
[309789578,1704125442133,-186.17,0.00038836,2]
[309789579,1704125442143,-3880.09586849,0.0003889,2]
[309789580,1704125442153,-153.84,0.00038892,2]
[309789581,1704125442162,-161.231227,0.00038898,5]
[309789582,1704125442171,-2100.0,0.000389,14]
[309789583,1704125442180,-380.83098948,0.000389,2]
[309789584,1704125442190,-378.92607138,0.000389,2]
[309789585,1704125442199,-1691.50993187,0.00038927,9]
[309789586,1704125442208,-9043.76043211,0.00038927,6]
[309789587,1704125442218,-4637.1238134,0.00038927,6]
[309789588,1704125442227,-231.85619067,0.00038927,7]
[309789589,1704125442237,-2528.58364895,0.00038927,7]
[309789590,1704125442246,-150.9,0.00038955,2]
[309789591,1704125442256,-193.35205582,0.0003899,2]
[309789592,1704125442266,-161.231227,0.00038998,5]
[309789593,1704125442276,-145974.71745202,0.00039,3]
[309789594,1704125442301,-467.12681046,0.0003853,2]
[309789595,1704125442311,-5689.36897338,0.00039,3]
[309789596,1704125442329,-590.32126424,0.00039,3]
[309789597,1704125442341,-604.46230432,0.00039,3]
[309789598,1704125442353,-3738.70905351,0.00039,3]
[309789599,1704125442365,-3500.0,0.00039,3]
[309789600,1704125442377,-609.4033278,0.00039,3]
[309789614,1704125443190,-656.79101804,0.00029707,2]
[309789616,1704125443246,-3961.29598864,0.00029707,2]
[309789617,1704125443256,-259.097,0.00037701,2]
[309789618,1704125443265,-24968.5132801,0.00039,3]
[309789619,1704125443277,-5049.74244228,0.00039,3]
[309789620,1704125443288,-8257.62053598,0.00039,3]
[309789621,1704125443300,-2274.36626535,0.00039,3]
[309789622,1704125443311,-4479.86416491,0.00039,3]
[309789623,1704125443323,-4164.36235261,0.00039,3]
[309789640,1704125446302,-790.8981704,0.0003,2]
[309789642,1704125446311,-284.79,0.00036389,2]
[309789643,1704125446322,-278.12972048,0.00038104,4]
[309789644,1704125446331,-284.79,0.00038653,2]
[309789645,1704125446340,-7543.25536054,0.00039,3]
[309789646,1704125446357,-599.27979208,0.00039,3]
[309789647,1704125446526,-687.59640453,0.00036388,2]
[309789648,1704125446536,-84976.45923407,0.00039,3]
[309789649,1704125446563,-1590.19510943,0.00039,3]
[309789732,1704126569092,-155.0,0.00033499,2]
[309789733,1704126569112,-235.9851402,0.000335,4]
[309789757,1704126631355,-250.58066152,0.000335,4]
[309789759,1704126631366,-292.20168364,0.000335,4]
[309789762,1704126631376,-1000.0,0.00034021,4]
[309789764,1704126631385,-206.0,0.00034022,2]
[309789765,1704126631395,-264.35,0.00035271,2]
[309789768,1704126631405,-1336.90553083,0.000357,3]
[309789770,1704126631422,-500.00054805,0.000357,3]
[309789772,1704126631434,-18337.09392112,0.000357,3]
[309789774,1704126631443,-156.09041944,0.00036286,2]
[309789776,1704126631453,-912.74277067,0.00036386,4]
[309789778,1704126631462,-399.92739862,0.00036387,4]
[309789780,1704126631471,-271.76114414,0.00036388,4]
[309789782,1704126631481,-150.84,0.00036975,2]
[309789783,1704126631491,-221.32,0.00037111,2]
[309789784,1704126631500,-680.0,0.00037122,2]
[309789785,1704126631510,-163.01,0.0003716,15]
[309789786,1704126631519,-3515.41,0.00037161,2]
[309789787,1704126631529,-600.81,0.00037172,2]
[309789788,1704126631538,-173.55,0.00037211,2]
[309789789,1704126631548,-320.0,0.00037243,2]
[309789790,1704126631558,-323.62494061,0.000373,2]
[309789791,1704126631570,-185.37505939,0.000373,2]
[309789792,1704126631581,-264.35,0.00037534,2]
[309789793,1704126631591,-51.49860328,0.00037538,2]
[309789794,1704126631603,-125.47139672,0.00037538,2]
[309789795,1704126631614,-157.53,0.00037745,2]
[309789796,1704126631624,-175.64,0.00038168,2]
[309789797,1704126631634,-173.55,0.0003819,2]
[309789798,1704126631645,-167.0,0.0003832,2]
[309789799,1704126631655,-206.0,0.00038351,11]
[309789800,1704126631664,-4000.0,0.000384,2]
[309789801,1704126631673,-593.15007525,0.000384,2]
[309789802,1704126631683,-150.84,0.00038419,2]
[309789803,1704126631695,-2263.0,0.00038576,2]
[309789804,1704126631705,-2886.0,0.00038576,2]
[309789805,1704126631714,-144.24994525,0.00038576,2]
[309789808,1704126631875,-243.99905475,0.00038576,2]
[309789809,1704126631888,-252.715,0.00038576,2]
[309789810,1704126631900,-2656.02310892,0.00038589,2]
[309789811,1704126631917,-540.651294,0.00038589,2]
[309789812,1704126631931,-5925.71601407,0.00038589,2]
[309789813,1704126631946,-1390.02,0.00038589,2]
[309789814,1704126631967,-537.63081461,0.00038589,2]
[309789815,1704126631977,-155.0,0.00038599,2]
[309789816,1704126631986,-897.13226832,0.000386,2]
[309789817,1704126632000,-450.0,0.000386,2]
[309789818,1704126632015,-758.90243168,0.000386,2]
[309789819,1704126632026,-1435.65412887,0.000386,2]
[309789820,1704126632047,-691.93000005,0.00038576,2]
[309789821,1704126632061,-542.06999995,0.00038576,2]
[309789822,1704126632073,-1011.46575247,0.000386,2]
[309789823,1704126632087,-723.29676624,0.000386,2]
[309789827,1704126637549,-48547.09783929,0.000386,2]
[309789828,1704126637762,-2684.15237791,0.000386,2]
[309789829,1704126637776,-2514.9368186,0.000386,2]
[309789830,1704126637873,-9372.69779824,0.000386,2]
[309789854,1704126640070,-1812.78562479,0.000386,2]
[309789856,1704126640083,-368.48106836,0.000386,2]
[309789858,1704126640096,-2056.247193,0.000386,2]
[309789861,1704126640108,-379.9422459,0.000386,2]
[309789865,1704126640136,-30143.46888633,0.000386,2]
[309789867,1704126640155,-394.7104,0.00038628,2]
[309789870,1704126640169,-2645.62764212,0.00038656,9]
[309789872,1704126640184,-4191.88850165,0.00038656,10]
[309789873,1704126640197,-1563.5385,0.00038698,2]
[309789874,1704126640208,-279.38532841,0.00038698,2]
[309789875,1704126640225,-720.61467159,0.00038698,2]
[309789876,1704126640240,-8876.66634,0.000387,2]
[309789877,1704126640258,-1517.80621206,0.000387,2]
[309789878,1704126640274,-1915.39860031,0.000387,2]
[309789879,1704126640290,-660.87471969,0.000387,2]
[309789880,1704126640998,-717.13726131,0.000387,2]
[309789881,1704126641013,-303.84007919,0.000387,2]
[309789883,1704126641054,-10005.56518744,0.000387,2]
[309789885,1704126641065,-1000.0,0.000387,2]
[309789886,1704126641077,-9911.22165756,0.000387,2]
[309789891,1704126642442,-2262.92912069,0.000387,2]
[309789892,1704126642457,-5982.65474952,0.000387,2]
[309789893,1704126642472,-2156.25,0.000387,2]
[309789896,1704126643050,-0.24194445,0.000387,2]
[309789897,1704126643069,-1120638.44407406,0.000387,2]
[309789898,1704126643080,-438.75135712,0.000387,9]